fUSD/lending_fUSD_20240107
["ID","MTS","AMOUNT","RATE_DAILY","PERIOD"]
[310715223,1704654473551,341.39759896,0.00021476,2]
[310715224,1704654476717,176.8846555,0.00021476,2]
[310715225,1704654481591,401.51098679,0.00020832,2]
[310715226,1704654482607,481.50574229,0.00018213,2]
[310715227,1704654487673,844.98023039,0.00021476,2]
[310715231,1704654502686,200.0,0.00021612,2]
[310715232,1704654504713,176.8846555,0.00021476,2]
[310715250,1704654519034,418.96973772,0.00022001,2]
[310715253,1704654520733,176.8846555,0.00018213,2]
[310715256,1704654523062,191.7935,0.00018213,2]
[310715259,1704654523546,553.13201144,0.00022001,2]
[310715260,1704654526120,1494.95769752,0.00021623,2]
[310715261,1704654526165,505.04230248,0.00021623,2]
[310715262,1704654527180,446.57150611,0.00020466,2]
[310715268,1704654541075,173.09315374,0.00018213,2]
[310715269,1704654541581,245.7738501,0.00018213,2]
[310715270,1704654544337,254.85450863,0.00018213,2]
[310715274,1704654547182,328.876052,0.00020466,2]
[310715285,1704654549605,8045.78862694,0.0002161,2]
[310715286,1704654549648,15854.21137306,0.0002161,2]
[310715287,1704654551309,1581.48,0.0002161,2]
[310715288,1704654561852,282.85255823,0.00021998,2]
[310715295,1704654576061,162.47,0.00021623,2]
[310715296,1704654576278,162.47,0.00021863,2]
[310715297,1704654578803,175.9,0.00021998,2]
[310715298,1704654579174,153.53,0.00021611,2]
[310715300,1704654585643,844.98023039,0.00020466,2]
[310715310,1704654597537,418.96973772,0.00022001,2]
[310715311,1704654606055,553.13201144,0.00022001,2]
[310715313,1704654620691,888.86,0.00021611,2]
[310715319,1704654629957,151.0,0.00023,7]
[310715320,1704654630209,500.0,0.00021611,2]
[310715326,1704654632328,-617.20713134,0.00022002,2]
[310715327,1704654632406,-2578.60400079,0.00022002,2]
[310715328,1704654632416,-161.55,0.00022036,2]
[310715329,1704654632425,-155.87144524,0.00022043,2]
[310715330,1704654632435,-150.0,0.00022065,2]
[310715331,1704654632444,-4955.54571381,0.00022066,2]
[310715332,1704654632484,-1542.78234516,0.00022066,2]
[310715333,1704654632495,-1048.24230886,0.00022066,2]
[310715334,1704654632507,-690.78500141,0.00022066,2]
[310715335,1704654632538,-328.85216654,0.00022066,2]
[310715336,1704654632549,-5028.69970534,0.00022066,2]
[310715337,1704654632560,-328.56219678,0.00022066,2]
[310715338,1704654632572,-285.8344283,0.00022066,2]
[310715339,1704654632584,-940.7975509,0.00022066,2]
[310715340,1704654632596,-250.0,0.00022066,2]
[310715341,1704654632619,-1810.25693674,0.00022066,2]
[310715383,1704654638535,-21953.59314236,0.00022066,2]
[310715384,1704654638546,-443.76686268,0.00022076,2]
[310715385,1704654638556,-3315.25455109,0.00022076,2]
[310715386,1704654638565,-685.49,0.00022076,2]
[310715387,1704654638575,-161.55,0.00022096,2]
[310715388,1704654638585,-162.47,0.00022103,2]
[310715389,1704654638595,-155.87144524,0.00022128,2]
[310715390,1704654638604,-499.99,0.00022128,2]
[310715391,1704654638614,-202.33,0.00022128,2]
[310715392,1704654638624,-256.13,0.00022135,2]
[310715393,1704654638634,-311.55,0.00022135,2]
[310715394,1704654638643,-151.71,0.0002215,2]
[310715395,1704654638653,-161.55,0.00022155,2]
[310715396,1704654638662,-155.87144524,0.00022214,2]
[310715397,1704654638672,-161.55,0.00022215,2]
[310715398,1704654638682,-256.13,0.00022272,2]
[310715399,1704654638691,-161.55,0.00022275,2]
[310715400,1704654638700,-155.87144524,0.00022299,2]
[310715401,1704654638710,-151.71,0.00022305,2]
[310715402,1704654638719,-161.55,0.00022334,2]
[310715403,1704654638728,-162.47,0.00022344,2]
[310715404,1704654638738,-155.87144524,0.00022385,2]
[310715405,1704654638747,-161.55,0.00022394,2]
[310715406,1704654638757,-256.13,0.00022409,2]
[310715407,1704654638768,-161.55,0.00022453,2]
[310715408,1704654638779,-412.48,0.00022455,2]
[310715409,1704654638788,-151.71,0.0002246,2]
[310715410,1704654638798,-155.87144524,0.0002247,2]
[310715411,1704654638807,-161.55,0.00022513,2]
[310715412,1704654638816,-278.5821606,0.00022538,2]
[310715413,1704654638826,-815.2136113,0.00022546,2]
[310715414,1704654638836,-147.83335878,0.00022546,2]
[310715415,1704654638849,-364.42664122,0.00022546,2]
[310715416,1704654638858,-68.56987443,0.00022546,2]
[310715417,1704654638883,-107.33012557,0.00022546,2]
[310715418,1704654638892,-155.87144524,0.00022556,2]
[310715419,1704654638901,-161.55,0.00022573,2]
[310715420,1704654638910,-91.60457117,0.00022584,2]
[310715421,1704654638935,-70.86542883,0.00022584,2]
[310715422,1704654638944,-151.71,0.00022615,2]
[310715423,1704654638954,-29.03171482,0.00022632,2]
[310715424,1704654638971,-132.51828518,0.00022632,2]
[310715425,1704654638981,-155.87144524,0.00022641,2]
[310715427,1704654638990,-2573.4853,0.00022666,2]
[310715429,1704654638999,-106.89904002,0.00022692,2]
[310715436,1704654639054,-54.65095998,0.00022692,2]
[310715439,1704654639063,-155.87144524,0.00022727,2]
[310715442,1704654639072,-161.55,0.00022752,2]
[310715445,1704654639081,-1778.83126122,0.00022766,2]
[310715448,1704654639093,-1258.25432483,0.00022766,2]
[310715451,1704654639102,-217.28450417,0.00022766,2]
[310715454,1704654639111,-234.28726633,0.00022766,2]
[310715456,1704654639120,-484.20356126,0.00022766,2]
[310715458,1704654639129,-367.81924765,0.00022766,2]
[310715460,1704654639138,-219.96647591,0.00022766,2]
[310715462,1704654639147,-9936.75064867,0.00022766,2]
[310715464,1704654639157,-156.16116689,0.00022766,2]
[310715466,1704654639166,-155.95455381,0.00022766,2]
[310715468,1704654639175,-752.28942193,0.00022766,2]
[310715470,1704654639184,-27237.88245805,0.00022766,2]
[310715472,1704654639194,-462.88672125,0.00022766,2]
[310715474,1704654639203,-1756.69941386,0.00022766,2]
[310715476,1704654639212,-344.78916664,0.00022766,2]
[310715478,1704654639222,-4459.22237159,0.00022767,2]
[310715480,1704654639230,-151.71,0.00022769,2]
[310715482,1704654639239,-161.55,0.00022811,2]
[310715484,1704654639248,-155.87144524,0.00022812,2]
[310715485,1704654639257,-162.47,0.00022824,2]
[310715487,1704654639267,-161.55,0.00022871,2]
[310715489,1704654639277,-1057.3023,0.00022897,2]
[310715491,1704654639286,-1263.7867,0.00022897,2]
[310715493,1704654639296,-155.87144524,0.00022898,2]
[310715495,1704654639306,-717.18753648,0.00022898,2]
[310715498,1704654639315,-278.42758564,0.00022898,2]
[310715499,1704654639325,-704.49347928,0.00022898,2]
[310715501,1704654639335,-5166.76337971,0.00022898,2]
[310715503,1704654639344,-187.85943439,0.00022898,2]
[310715505,1704654639354,-1859.758,0.00022898,2]
[310715507,1704654639363,-4328.56,0.000229,2]
[310715509,1704654639373,-3067.57,0.000229,2]
[310715511,1704654639383,-151.71,0.00022924,2]
[310715513,1704654639392,-227.71051894,0.00022996,2]
[310715515,1704654639401,-240.38152593,0.00022996,2]
[310715517,1704654639411,-207.9220019,0.00022996,2]
[310715519,1704654639420,-213.86181292,0.00022996,2]
[310715521,1704654639429,-522.20683445,0.00022996,2]
[310715523,1704654639438,-155.0,0.00022996,2]
[310715525,1704654639448,-697.70526116,0.00022997,2]
[310715527,1704654639457,-176.66666667,0.00022997,2]
[310715529,1704654639467,-176.66666667,0.00022997,2]
[310715531,1704654639477,-416.76204987,0.00022998,2]
[310715533,1704654639486,-6418.11723431,0.00022998,2]
[310715535,1704654639495,-252.12148909,0.00022998,2]
[310715537,1704654639505,-207.2278993,0.00022998,2]
[310715539,1704654639514,-309.16657707,0.00022998,2]
[310715541,1704654639523,-1054263.9214738,0.00022998,2]
[310715543,1704654639532,-16713.83662006,0.00022998,2]
[310715545,1704654639541,-1430.36149518,0.00022998,2]
[310715547,1704654639550,-269.83626346,0.00022998,2]
[310715549,1704654639560,-273.15370351,0.00022998,2]
[310715551,1704654639570,-2035.82516095,0.00022998,2]
[310715553,1704654639579,-337.11641758,0.00022998,2]
[310715585,1704654639881,-4160.55312861,0.00022998,2]
[310715587,1704654639893,-242.43603172,0.00022998,2]
[310715589,1704654639902,-651.66959443,0.00022999,2]
[310715592,1704654639912,-3060.60183847,0.00022999,2]
[310715593,1704654639921,-292.07537104,0.00022999,2]
[310715595,1704654639931,-3613.76151731,0.00022999,2]
[310715597,1704654639940,-508.65602525,0.00022999,2]
[310715599,1704654639949,-236.68124518,0.00022999,2]
[310715601,1704654639958,-175.14088156,0.00022999,2]
[310715603,1704654639967,-156.93894057,0.00022999,2]
[310715605,1704654639976,-176.66666667,0.00022999,2]
[310715607,1704654639986,-176.66666667,0.00022999,2]
[310715609,1704654639995,-176.66666667,0.00022999,2]
[310715611,1704654640004,-2065800.63793802,0.00023,2]
[310715614,1704654640016,-2733.36764432,0.00023,2]
[310715615,1704654640064,-797456.51546235,0.00023,2]
[310715616,1704654640073,-932.02592622,0.00023,2]
[310715617,1704654640082,-852869.28891852,0.00023,2]
[310715618,1704654640094,-154200.21414285,0.00023,2]
[310715619,1704654640105,-100636.48778697,0.00023,2]
[310715620,1704654640117,-478.613072,0.00023,2]
[310716123,1704654646623,-7244.98220064,0.00022998,2]
[310716124,1704654646730,-3488.94450831,0.00022998,2]
[310716125,1704654646741,-9012.78812622,0.00022998,2]
[310716126,1704654646753,-2158.17968412,0.00022998,2]
[310716127,1704654646764,-1783.23346018,0.00022998,2]
[310716128,1704654646985,-297.3622043,0.00022998,2]
[310716129,1704654647005,-290.15691246,0.00022998,2]
[310716130,1704654647016,-10731.25,0.00022998,2]
[310716131,1704654647028,-1395.21065674,0.00022998,2]
[310716132,1704654647588,-106627.75577877,0.00022998,2]
[310716133,1704654647600,-56008.1713987,0.00022998,2]
[310716134,1704654647864,-452195.19934812,0.00022998,2]
[310716135,1704654647909,-938.06556108,0.00022998,2]
[310716136,1704654647920,-424.54446131,0.00022998,2]
[310716137,1704654648017,-51970.81943308,0.00022998,2]
[310716138,1704654648029,-453.8784,0.00022998,2]
[310716139,1704654648040,-2514.8464571,0.00022998,2]
[310716140,1704654648055,-496.91822474,0.00022998,2]
[310716141,1704654648066,-2030.05024149,0.00022998,2]
[310716142,1704654648077,-11717.39326322,0.00022998,2]
[310716143,1704654648350,-19174.93176245,0.00022998,2]
[310716144,1704654648361,-21829.8742,0.00022998,2]
[310716145,1704654648380,-1632.92621345,0.00022998,2]
[310716146,1704654648391,-3950.46662316,0.00022998,2]
[310716147,1704654648402,-742.79,0.00022998,2]
[310716148,1704654648413,-2723.63901046,0.00022998,2]
[310716149,1704654648437,-35398.56325316,0.00022998,2]
[310716150,1704654648448,-341.82,0.00022998,2]
[310716151,1704654648463,-536.28001313,0.00022998,2]
[310716152,1704654648509,-2622.63179176,0.00022998,2]
[310716153,1704654648521,-9479.26306356,0.00022998,2]
[310716154,1704654648531,-25202.52784,0.00022998,2]
[310716155,1704654649585,-1508.58868894,0.00022998,2]
[310716156,1704654649598,-661.815,0.00022998,2]
[310716157,1704654649609,-310.26392351,0.00022998,2]
[310716158,1704654649641,-1300.12885984,0.00022998,2]
[310716159,1704654649653,-4109.20204665,0.00022998,2]
[310716160,1704654649664,-2735.49702772,0.00022998,2]
[310716161,1704654649675,-683.84348786,0.00022998,2]
[310716162,1704654649686,-409.248,0.00022998,2]
[310716163,1704654651233,-3697.23614582,0.00022998,2]
[310716164,1704654651244,-59553.03578683,0.00022998,2]
[310716165,1704654651328,-269850.32781064,0.00022998,2]
[310716166,1704654651344,-883.01,0.00022998,2]
[310716167,1704654652519,1916.01087742,0.00022,2]
[310716173,1704654707759,558.17129057,0.00020465,2]
[310716174,1704654713542,181.31,0.00024884,120]
[310716175,1704654749524,594.02,0.00020481,2]
[310716181,1704654824357,456.0,0.00021934,2]
[310716182,1704654825575,2960.3796,0.00021902,2]
[310716185,1704654860575,401.87,0.00021709,2]
[310716186,1704654875414,1154.3,0.00021836,2]
[310716190,1704654947340,352.91402153,0.00022895,10]
[310716202,1704654986595,23900.0,0.00021649,2]
[310716203,1704655005024,2000.0,0.00021639,2]
[310716206,1704655034248,152.13,0.00021658,2]
[310716207,1704655034488,152.13,0.00021778,2]
[310716208,1704655034701,152.13,0.00021899,2]
[310716213,1704655148001,747.95,0.00021521,2]
[310716214,1704655192806,590.98,0.00019581,2]
[310716215,1704655193202,590.98,0.00021845,2]
[310716216,1704655194596,175.9,0.00021994,2]
[310716217,1704655245431,171.19,0.00021493,2]
[310716218,1704655258396,150.0,0.00021493,2]
[310716219,1704655258416,150.0,0.00021493,2]
[310716220,1704655258436,150.0,0.00021493,2]
[310716221,1704655258456,69.56,0.00021493,2]
[310716222,1704655259757,80.44,0.00021493,2]
[310716223,1704655259778,119.56,0.00021493,2]
[310716224,1704655270402,150.0,0.00021534,2]
[310716225,1704655270423,150.0,0.00021534,2]
[310716226,1704655270446,150.0,0.00021534,2]
[310716227,1704655270743,150.0,0.00021534,2]
[310716228,1704655270771,35.2,0.00021534,2]
[310716229,1704655274243,114.8,0.00021512,2]
[310716230,1704655274262,35.2,0.00021512,2]
[310716231,1704655290581,167.27811016,0.00021493,2]
[310716232,1704655306831,150.0,0.0002165,2]
[310716233,1704655306852,150.0,0.0002165,2]
[310716234,1704655306872,150.0,0.0002165,2]
[310716235,1704655306893,150.0,0.0002165,2]
[310716236,1704655306913,150.0,0.0002165,2]
[310716237,1704655306933,150.0,0.0002165,2]
[310716238,1704655306953,150.0,0.0002165,2]
[310716239,1704655306973,150.0,0.0002165,2]
[310716240,1704655306993,150.0,0.0002165,2]
[310716241,1704655307013,185.71,0.0002165,2]
[310716242,1704655307035,461.17,0.0002165,2]
[310716243,1704655307277,417.18,0.00021478,2]
[310716244,1704655330640,150.0,0.00021493,2]
[310716245,1704655330662,458.63905508,0.00021493,2]
[310716246,1704655343040,162.94,0.00021458,2]
[310716247,1704655346617,741.36094492,0.00021478,2]
[310716248,1704655355083,213.56,0.00021776,2]
[310716249,1704655355331,213.56,0.00021836,2]
[310716250,1704655355615,213.56,0.00021896,2]
[310716251,1704655356315,213.56,0.00021955,2]
[310716254,1704655457157,150.0,0.00021435,2]
[310716255,1704655457189,100.0,0.00021435,2]
[310716256,1704655485455,50.0,0.00021435,2]
[310716257,1704655485479,23850.0,0.00021435,2]
[310716258,1704655499631,2000.0,0.00021435,2]
[310716259,1704655500689,152.29,0.00021649,2]
[310716260,1704655513581,300.0,0.00021892,2]
[310716261,1704655555691,262.78780788,0.00022001,2]
[310716262,1704655574092,525.74,0.00021467,2]
[310716263,1704655577202,165.31,0.00021458,2]
[310716264,1704655596378,249.73147916,0.00022001,2]
[310716265,1704655605662,404.62,0.00021459,2]
[310716266,1704655611181,150.0,0.00021459,2]
[310716267,1704655645526,356.02,0.00021455,2]
[310716268,1704655657672,607.67,0.00019538,2]
[310716269,1704655657844,607.67,0.00021802,2]
[310716270,1704655667586,-150.0,0.00022002,2]
[310716271,1704655667607,-213.56,0.00022015,2]
[310716272,1704655667631,-152.13,0.00022019,2]
[310716276,1704655698995,-213.56,0.00022075,2]
[310716277,1704655699015,-1786.44,0.00022075,2]
[310716278,1704655706361,-764.95135254,0.00022075,2]
[310716279,1704655706381,-1235.04864746,0.00022116,2]
[310716280,1704655708729,491.84,0.00021484,2]
[310716281,1704655714771,-992.47,0.00022116,2]
[310716284,1704655744973,-156.04673319,0.00022017,2]
[310716285,1704655744993,-156.0467331,0.00022115,2]
[310716286,1704655745013,-1687.90653371,0.00022116,2]
[310716287,1704655746002,-2000.0,0.00022116,2]
[310716289,1704655747138,-1850.1741917,0.00022116,2]
[310716290,1704655748201,149.8258083,0.00022115,2]
[310716291,1704655748222,2000.0,0.00022115,2]
[310716292,1704655749148,-2000.0,0.00022115,2]
[310716294,1704655751066,-2000.0,0.00022115,2]
[310716295,1704655758690,171.19,0.00021477,2]
[310716296,1704655763151,245.71359517,0.00021995,2]
[310716299,1704655774387,-2000.0,0.00022115,2]
[310716300,1704655775055,-2000.0,0.00022115,2]
[310716301,1704655787759,-2000.0,0.00022115,2]
[310716302,1704655788458,-2000.0,0.00022115,2]
[310716303,1704655789065,-2000.0,0.00022115,2]
[310716304,1704655789740,-2000.0,0.00022115,2]
[310716305,1704655790389,-2000.0,0.00022115,2]
[310716308,1704655799508,-2000.0,0.00022115,2]
[310716309,1704655800221,-2000.0,0.00022115,2]
[310716310,1704655800911,-1918.89601823,0.00022115,2]
[310716311,1704655804888,81.10398177,0.00021995,2]
[310716312,1704655804911,94.79601823,0.00021995,2]
[310716313,1704655812401,193.02,0.00021488,2]
[310716319,1704655833231,-2887.94746135,0.00022118,2]
[310716320,1704655833287,-1155.32938971,0.00022118,2]
[310716321,1704655833347,-600.0,0.00022118,2]
[310716322,1704655833359,-659.3325531,0.00022118,2]
[310716323,1704655833407,-2462.98996871,0.00022118,2]
[310716324,1704655833416,-150.0,0.00022118,2]
[310716325,1704655833426,-13640.9186,0.00022119,2]
[310716326,1704655833435,-213.56,0.00022135,2]
[310716327,1704655833444,-152.13,0.00022139,2]
[310716328,1704655833454,-213.56,0.00022194,2]
[310716329,1704655833463,-156.0467331,0.00022212,2]
[310716330,1704655833473,-213.56,0.00022254,2]
[310716331,1704655833483,-152.13,0.0002226,2]
[310716332,1704655833492,-221.41,0.00022279,3]
[310716333,1704655833501,-499.99,0.0002228,2]
[310716334,1704655833510,-170.55472325,0.0002231,2]
[310716335,1704655833520,-156.0467331,0.0002231,2]
[310716336,1704655833529,-213.56,0.00022314,2]
[310716337,1704655833538,-213.56,0.00022373,2]
[310716339,1704655833547,-152.13,0.0002238,2]
[310716341,1704655833557,-1333.19880575,0.000224,2]
[310716343,1704655833566,-156.0467331,0.00022407,2]
[310716344,1704655833576,-213.56,0.00022433,2]
[310716345,1704655833585,-2990.7318,0.00022437,2]
[310716346,1704655833595,-417.18,0.00022456,2]
[310716348,1704655833604,-213.56,0.00022493,2]
[310716350,1704655833614,-152.13,0.000225,2]
[310716352,1704655833623,-156.0467331,0.00022505,2]
[310716354,1704655833633,-7421.571,0.00022537,2]
[310716356,1704655833642,-175.9,0.00022543,2]
[310716358,1704655833651,-213.56,0.00022553,2]
[310716360,1704655833661,-193.02,0.00022563,2]
[310716362,1704655833670,-300.0,0.00022565,2]
[310716364,1704655833679,-259.256,0.0002257,2]
[310716366,1704655833688,-19463.8134,0.0002257,2]
[310716368,1704655833698,-156.0467331,0.00022602,2]
[310716370,1704655833707,-213.56,0.00022612,2]
[310716372,1704655833717,-152.13,0.00022621,2]
[310716374,1704655833725,-15906.71308138,0.00022665,2]
[310716376,1704655833735,-205.54450642,0.00022668,2]
[310716378,1704655833744,-262.07566692,0.00022668,2]
[310716380,1704655833753,-248.76382358,0.00022668,2]
[310716382,1704655833762,-468.96901353,0.00022668,2]
[310716384,1704655833772,-1306.17308962,0.00022668,2]
[310716386,1704655833781,-1235.37,0.00022668,2]
[310716388,1704655833790,-13390.63824358,0.00022668,2]
[310716390,1704655833799,-106636.80416255,0.00022669,2]
[310716392,1704655833811,-24707.82542715,0.00022669,2]
[310716395,1704655833826,-707.58241252,0.00022669,2]
[310716422,1704655834437,-1655.05786843,0.00022669,2]
[310716423,1704655834448,-600.1261207,0.00022669,2]
[310716424,1704655834488,-579.59745,0.00022669,2]
[310716425,1704655834500,-900.0,0.00022669,2]
[310716442,1704655837958,-421798.55246015,0.00022669,2]
[310716443,1704655837968,-180.555,0.0002267,2]
[310716444,1704655837978,-162469.0337,0.0002267,2]
[310716445,1704655837987,-213.56,0.00022672,2]
[310716446,1704655837996,-156.0467331,0.000227,2]
[310716447,1704655838005,-213.56,0.00022732,2]
[310716448,1704655838014,-152.13,0.00022741,2]
[310716449,1704655838023,-393.9407088,0.00022766,2]
[310716450,1704655838032,-387440.13458157,0.0002277,2]
[310716451,1704655838047,-283.46060076,0.0002277,2]
[310716452,1704655838059,-716.53939924,0.0002277,2]
[310716453,1704655838157,-559.28171963,0.0002277,2]
[310716454,1704655838180,-913378.71315803,0.0002277,2]
[310716456,1704655838189,-310277.0,0.0002277,2]
[310716458,1704655838197,-213.56,0.00022792,2]
[310716460,1704655838206,-156.0467331,0.00022797,2]
[310716461,1704655838215,-213.56,0.00022851,2]
[310716462,1704655838223,-152.13,0.00022861,2]
[310716463,1704655838232,-393.760976,0.00022895,2]
[310716464,1704655838240,-301.75464763,0.00022895,2]
[310716465,1704655838249,-183.02268839,0.00022895,2]
[310716466,1704655838258,-186.8108454,0.00022895,2]
[310716467,1704655838267,-156.0467331,0.00022895,2]
[310716468,1704655838276,-158.54188865,0.00022895,2]
[310716469,1704655838285,-185.61839042,0.00022895,2]
[310716470,1704655838294,-95408.0349,0.00022897,2]
[310716471,1704655838303,-213.56,0.00022911,2]
[310716472,1704655838312,-152.13,0.00022982,2]
[310716473,1704655838321,-418.26259992,0.00022984,2]
[310716474,1704655838330,-4475.90351577,0.00022993,2]
[310716475,1704655838339,-313.44611819,0.00022993,2]
[310716476,1704655838348,-2889.99602098,0.00022996,2]
[310716477,1704655838357,-2939.6699928,0.00022996,2]
[310716478,1704655838366,-1174.57417902,0.00022996,2]
[310716479,1704655838375,-599.27979208,0.00022996,2]
[310716480,1704655838384,-788.46419341,0.00022996,2]
[310716481,1704655838394,-686.17088593,0.00022996,2]
[310716482,1704655838403,-12519.64299487,0.00022996,2]
[310716483,1704655838412,-7084.68978196,0.00022997,2]
[310716484,1704655838421,-366335.11983963,0.00023,2]
[310716485,1704655838430,-932.02592622,0.00023,2]
[310716486,1704655838440,-281.29,0.00023,2]
[310716487,1704655838449,-17131.817965,0.00023033,2]
[310716488,1704655838458,-121765.0384999,0.00023049,2]
[310716489,1704655838467,-162.47,0.00023064,2]
[310716490,1704655838476,-151.71,0.00023079,2]
[310716491,1704655838486,-175.9,0.00023091,2]
[310716492,1704655838495,-10556.44752612,0.000231,2]
[310716493,1704655838503,-152.13,0.00023102,2]
[310716494,1704655838512,-3428.72764129,0.0002313,2]
[310716495,1704655838521,-150.00000001,0.00023178,2]
[310716496,1704655838530,-152.13,0.00023222,2]
[310716497,1704655838539,-151.71,0.00023234,2]
[310716498,1704655838548,-162.47,0.00023305,2]
[310716499,1704655838556,-152.13,0.00023343,2]
[310716500,1704655838565,-151.71,0.00023389,2]
[310716501,1704655838574,-417.18,0.00023435,2]
[310716502,1704655838582,-152.13,0.00023463,2]
[310716503,1704655838591,-151.71,0.00023544,2]
[310716504,1704655838600,-162.47,0.00023545,2]
[310716505,1704655838609,-152.13,0.00023583,2]
[310716506,1704655838618,-162.94,0.00023604,2]
[310716507,1704655838627,-193.02,0.00023637,2]
[310716508,1704655838636,-195.36458152,0.00023639,2]
[310716509,1704655838645,-151.71,0.00023699,2]
[310716510,1704655838654,-152.13,0.00023704,2]
[310716511,1704655838662,-162.47,0.00023785,2]
[310716512,1704655838672,-158.57,0.00023802,2]
[310716513,1704655838680,-152.13,0.00023824,2]
[310716514,1704655838689,-151.71,0.00023854,2]
[310716515,1704655838698,-5166.76337969,0.00023896,2]
[310716516,1704655838707,-607.67,0.00024065,2]
[310716517,1704655838716,-175.07,0.00024134,2]
[310716518,1704655838726,-491.84,0.0002417,2]
[310716519,1704655838736,-635.2,0.00024226,2]
[310716520,1704655838746,-167.0,0.00024297,2]
[310716521,1704655838755,-210.0,0.00024329,2]
[310716522,1704655838765,-417.18,0.00024413,2]
[310716523,1704655838774,-250.0,0.00024658,2]
[310716524,1704655838784,-193.02,0.00024711,2]
[310716525,1704655838793,-5166.76337969,0.00024895,2]
[310716526,1704655838802,-1245.75987952,0.00025,2]
[310716527,1704655838811,-1580.75990469,0.00025,2]
[310716528,1704655838820,-507.31091902,0.00025,2]
[310716529,1704655838830,-350.0,0.00025,3]
[310716530,1704655838839,-57911.29980966,0.0002509,2]
[310716531,1704655838848,-1795.59569717,0.000251,2]
[310716532,1704655838857,-417.18,0.00025392,2]
[310716533,1704655838866,-162.94,0.00025749,2]
[310716534,1704655838875,-193.02,0.00025786,2]
[310716535,1704655838884,-5166.76337969,0.00025893,2]
[310716536,1704655838893,-5000.0,0.00026,3]
[310716537,1704655838902,-150.0,0.00026079,2]
[310716538,1704655838912,-205.0,0.00026121,2]
[310716539,1704655838921,-607.67,0.00026329,2]
[310716540,1704655838930,-417.18,0.0002637,2]
[310716541,1704655838939,-261.42380051,0.000264,2]
[310716542,1704655838948,-293.0,0.00026762,2]
[310716543,1704655838957,-491.84,0.00026856,2]
[310716544,1704655838966,-5166.76337969,0.00026891,2]
[310716545,1704655838976,-635.2,0.00026917,2]
[310716546,1704655838985,-415.09949014,0.00027,2]
[310716547,1704655838994,-400.0,0.00027,3]
[310716548,1704655839003,-417.18,0.00027349,2]
[310716549,1704655839012,-500.0,0.00027397,2]
[310716550,1704655839021,-500.0,0.00027397,2]
[310716551,1704655839030,-500.0,0.00027397,2]
[310716552,1704655839039,-250.0,0.00027397,2]
[310716553,1704655839047,-250.0,0.000274,2]
[310716554,1704655839057,-1339.0,0.000274,2]
[310716555,1704655839066,-2047.57820272,0.000274,2]
[310716556,1704655839075,-447.90554662,0.000274,2]
[310716557,1704655839084,-672.47944908,0.000275,4]
[310716558,1704655839093,-5166.76337969,0.0002789,2]
[310716559,1704655839102,-205.0,0.00027904,5]
[310716560,1704655839361,-4113.5,0.00027945,2]
[310716561,1704655839371,-19690.96,0.00027945,2]
[310716562,1704655839381,-687.02354933,0.00028,2]
[310716563,1704655839390,-6139.63136631,0.00028,2]
[310716564,1704655839399,-478.06640673,0.00028089,7]
[310716565,1704655839409,-247.85051243,0.00028089,7]
[310716566,1704655839418,-1607.99270372,0.00028089,7]
[310716567,1704655839426,-286.21619015,0.00028089,7]
[310716568,1704655839435,-800.8479239,0.00028089,7]
[310716569,1704655839445,-237.06924084,0.00028089,7]
[310716570,1704655839454,-296.6230689,0.00028089,7]
[310716571,1704655839463,-180.96645161,0.00028089,7]
[310716572,1704655839472,-461.46285963,0.00028089,7]
[310716573,1704655839481,-366.26607017,0.00028089,7]
[310716574,1704655839490,-240.1497976,0.00028089,7]